fUSD/lending_fUSD_20260607
["ID","MTS","AMOUNT","RATE_DAILY","PERIOD"]
[424398651,1780828249000,-212.0,0.00026117,3]
[424398654,1780828249000,-646.0,0.00026388,2]
[424398664,1780828249000,-300.0,0.00026573,2]
[424398662,1780828249000,-300.0,0.00026573,2]
[424398657,1780828249000,-301.14337869,0.00026477,2]
[424398659,1780828249000,-139766.0,0.000265,2]
[424398630,1780828249000,-646.0,0.00025523,2]
[424398646,1780828249000,-260.89922623,0.00026039,2]
[424398639,1780828249000,-215.83393831,0.000258,7]
[424398606,1780828249000,-215.83393831,0.00025,30]
[424398628,1780828249000,-152.0,0.00025494,17]
[424398603,1780828249000,-30123.22928555,0.00025,2]
[424398602,1780828249000,-40707.29858851,0.00025,7]
[424398605,1780828249000,-214.84077253,0.00025,2]
[424398615,1780828249000,-307.41,0.00025,2]
[424398607,1780828249000,-215.83393831,0.00025,7]
[424398604,1780828249000,-389.68052616,0.00025,2]
[424398608,1780828249000,-307.41,0.00025,2]
[424398614,1780828249000,-307.41,0.00025,2]
[424398611,1780828249000,-307.41,0.00025,2]
[424398613,1780828249000,-307.41,0.00025,2]
[424398612,1780828249000,-307.41,0.00025,2]
[424398610,1780828249000,-307.41,0.00025,2]
[424398661,1780828249000,-300.0,0.00026573,2]
[424398609,1780828249000,-307.41,0.00025,2]
[424398616,1780828249000,-307.41,0.00025,2]
[424398620,1780828249000,-251.11897888,0.00025102,2]
[424398621,1780828249000,-152.0,0.00025201,16]
[424398618,1780828249000,-554.9507705,0.00025,2]
[424398627,1780828249000,-312.51926486,0.00025417,2]
[424398617,1780828249000,-307.41,0.00025,2]
[424398623,1780828249000,-646.0,0.00025234,30]
[424398624,1780828249000,-180.0,0.00025334,2]
[424398619,1780828249000,-311.96328574,0.00025102,2]
[424398622,1780828249000,-504.48,0.00025234,30]
[424398626,1780828249000,-1380.14437613,0.00025397,2]
[424398625,1780828249000,-280.03725111,0.00025381,2]
[424398629,1780828249000,-504.48,0.00025523,2]
[424398640,1780828249000,-504.48,0.00025811,7]
[424398653,1780828249000,-504.48,0.00026388,2]
[424398706,1780828249000,-1226.53,0.00027397,8]
[424398663,1780828249000,-300.0,0.00026573,2]
[424398703,1780828249000,-1500.0,0.00027397,2]
[424398693,1780828249000,-776.76786906,0.000273,30]
[424398695,1780828249000,-300.0,0.000273,21]
[424398696,1780828249000,-200.0,0.00027304,2]
[424398698,1780828249000,-4526.11308084,0.0002739,7]
[424398694,1780828249000,-776.76786906,0.000273,30]
[424398697,1780828249000,-500.0,0.0002732,2]
[424398692,1780828249000,-152.0,0.00027256,23]
[424398701,1780828249000,-230.0240627,0.00027397,7]
[424398699,1780828249000,-920.09625076,0.00027397,7]
[424398700,1780828249000,-557.70992218,0.00027397,2]
[424398707,1780828249000,-300.0,0.00027397,2]
[424398705,1780828249000,-289.44574219,0.00027397,7]
[424398717,1780828249000,-154.709777,0.00027397,2]
[424398712,1780828249000,-167.485429,0.00027397,2]
[424398710,1780828249000,-167.485429,0.00027397,2]
[424398709,1780828249000,-528.84,0.00027397,2]
[424398714,1780828249000,-151.0,0.00027397,2]
[424398713,1780828249000,-167.485429,0.00027397,2]
[424398715,1780828249000,-151.0,0.00027397,2]
[424398716,1780828249000,-655.430247,0.00027397,2]
[424398711,1780828249000,-167.485429,0.00027397,2]
[424398718,1780828249000,-655.430247,0.00027397,2]
[424398719,1780828249000,-655.430247,0.00027397,2]
[424398720,1780828249000,-655.430247,0.00027397,2]
[424398656,1780828249000,-161.04675778,0.00026471,2]
[424398708,1780828249000,-1000.0,0.00027397,20]
[424398704,1780828249000,-164.05381436,0.00027397,7]
[424398702,1780828249000,-210.6827194,0.00027397,30]
[424398686,1780828249000,-1027.67,0.00027096,14]
[424398658,1780828249000,-215.83393831,0.000265,7]
[424398685,1780828249000,-160.0,0.0002703,3]
[424398660,1780828249000,-200.0,0.00026532,2]
[424398665,1780828249000,-300.0,0.00026573,2]
[424398667,1780828249000,-300.0,0.00026573,2]
[424398668,1780828249000,-300.0,0.00026573,2]
[424398669,1780828249000,-300.0,0.00026573,2]
[424398666,1780828249000,-300.0,0.00026573,2]
[424398676,1780828249000,-382.0,0.00026951,2]
[424398671,1780828249000,-500.0,0.00026598,2]
[424398674,1780828249000,-646.0,0.00026676,7]
[424398670,1780828249000,-276.0,0.00026573,2]
[424398675,1780828249000,-192.17155277,0.00026852,2]
[424398673,1780828249000,-504.48,0.00026676,7]
[424398672,1780828249000,-152.0,0.00026669,21]
[424398682,1780828249000,-250.0,0.00027,2]
[424398688,1780828249000,-215.93827535,0.00027139,2]
[424398677,1780828249000,-1227.0,0.00026951,2]
[424398683,1780828249000,-530.0,0.00027,2]
[424398687,1780828249000,-5530.0,0.000271,3]
[424398684,1780828249000,-183.90336901,0.00027007,60]
[424398680,1780828249000,-504.48,0.00026964,30]
[424398690,1780828249000,-504.48,0.00027253,2]
[424398679,1780828249000,-152.0,0.00026963,22]
[424398681,1780828249000,-646.0,0.00026964,30]
[424398691,1780828249000,-646.0,0.00027253,2]
[424398689,1780828249000,-184.2235877,0.00027253,2]
[424398678,1780828249000,-1358.0,0.00026951,2]
[424398767,1780828250000,-211.98340138,0.00027501,2]
[424398763,1780828250000,-197.10794886,0.00027501,2]
[424398760,1780828250000,-1385.48,0.000275,7]
[424398759,1780828250000,-500.0,0.000275,7]
[424398757,1780828250000,-500.0,0.00027424,14]
[424398753,1780828250000,-500.0,0.000274,2]
[424398755,1780828250000,-696.61,0.000274,2]
[424398756,1780828250000,-175.00753698,0.000274,2]
[424398766,1780828250000,-175.55994706,0.00027501,2]
[424398752,1780828250000,-500.0,0.000274,2]
[424398762,1780828250000,-181.61484334,0.00027501,2]
[424398758,1780828250000,-204.78494136,0.000275,2]
[424398765,1780828250000,-188.1079999,0.00027501,2]
[424398781,1780828250000,-184.79708854,0.00027503,2]
[424398764,1780828250000,-180.21600298,0.00027501,2]
[424398768,1780828250000,-165.85826422,0.00027501,2]
[424398774,1780828250000,-191.26040848,0.00027501,2]
[424398770,1780828250000,-200.27638198,0.00027501,2]
[424398773,1780828250000,-181.81052753,0.00027501,2]
[424398772,1780828250000,-169.42432172,0.00027501,2]
[424398771,1780828250000,-178.43828722,0.00027501,2]
[424398775,1780828250000,-167.33650119,0.00027501,2]
[424398769,1780828250000,-163.17708412,0.00027501,2]
[424398777,1780828250000,-185.36075326,0.00027502,2]
[424398778,1780828250000,-175.31800728,0.00027502,2]
[424398779,1780828250000,-164.6640991,0.00027502,2]
[424398747,1780828250000,-500.0,0.000274,2]
[424398761,1780828250000,-224.07209962,0.00027501,2]
[424398751,1780828250000,-500.0,0.000274,2]
[424398723,1780828250000,-547.521017,0.00027397,2]
[424398745,1780828250000,-500.0,0.000274,2]
[424398730,1780828250000,-453.66558,0.00027397,2]
[424398791,1780828250000,-155.72651823,0.00027503,2]
[424398728,1780828250000,-534.694545,0.00027397,2]
[424398721,1780828250000,-547.521017,0.00027397,2]
[424398727,1780828250000,-534.694545,0.00027397,2]
[424398724,1780828250000,-547.521017,0.00027397,2]
[424398729,1780828250000,-453.66558,0.00027397,2]
[424398725,1780828250000,-534.694545,0.00027397,2]
[424398726,1780828250000,-534.694545,0.00027397,2]
[424398722,1780828250000,-547.521017,0.00027397,2]
[424398732,1780828250000,-453.66558,0.00027397,2]
[424398731,1780828250000,-453.66558,0.00027397,2]
[424398733,1780828250000,-158.81196099,0.00027397,30]
[424398750,1780828250000,-500.0,0.000274,2]
[424398742,1780828250000,-830.34,0.000274,2]
[424398736,1780828250000,-500.0,0.000274,2]
[424398741,1780828250000,-500.0,0.000274,2]
[424398735,1780828250000,-260.27,0.000274,7]
[424398738,1780828250000,-800.74,0.000274,2]
[424398737,1780828250000,-500.0,0.000274,2]
[424398739,1780828250000,-500.0,0.000274,2]
[424398740,1780828250000,-500.0,0.000274,2]
[424398743,1780828250000,-537.86,0.000274,7]
[424398744,1780828250000,-500.0,0.000274,2]
[424398749,1780828250000,-500.0,0.000274,2]
[424398746,1780828250000,-500.0,0.000274,2]
[424398754,1780828250000,-500.0,0.000274,2]
[424398748,1780828250000,-500.0,0.000274,2]
[424398734,1780828250000,-920.09625076,0.00027397,7]
[424398783,1780828250000,-155.64820613,0.00027503,2]
[424398776,1780828250000,-168.39472002,0.00027502,2]
[424398782,1780828250000,-156.14902929,0.00027503,2]
[424398818,1780828250000,-215.83393831,0.00028,10]
[424398829,1780828250000,-232.40957034,0.00028219,30]
[424398828,1780828250000,-224.83,0.00028219,30]
[424398817,1780828250000,-325.0,0.00028,2]
[424398823,1780828250000,-504.48,0.00028118,2]
[424398820,1780828250000,-708.74732257,0.00028067,2]
[424398819,1780828250000,-151.0,0.00028007,60]
[424398822,1780828250000,-160.0,0.00028104,3]
[424398821,1780828250000,-200.0,0.00028077,2]
[424398826,1780828250000,-537.86,0.000282,7]
[424398824,1780828250000,-646.0,0.00028118,2]
[424398827,1780828250000,-224.83,0.00028219,30]
[424398825,1780828250000,-152.0,0.00028137,26]
[424398815,1780828250000,-1064.10061346,0.00028,60]
[424398840,1780828250000,-504.48,0.00028695,30]
[424398842,1780828250000,-152.0,0.00028725,28]
[424398831,1780828250000,-260.27,0.000283,7]
[424398841,1780828250000,-646.0,0.00028695,30]
[424398832,1780828250000,-160.0,0.0002831,3]
[424398837,1780828250000,-150.0,0.000285,2]
[424398836,1780828250000,-168.32,0.00028493,2]
[424398835,1780828250000,-152.0,0.00028431,27]
[424398834,1780828250000,-646.0,0.00028406,7]
[424398833,1780828250000,-504.48,0.00028406,7]
[424398838,1780828250000,-292.0,0.000285,2]
[424398843,1780828250000,-512.80924468,0.00028767,30]
[424398844,1780828250000,-297.94708846,0.00028767,2]
[424398780,1780828250000,-173.61056318,0.00027503,2]
[424398830,1780828250000,-514.95,0.00028282,2]
[424398809,1780828250000,-152.0,0.00027844,25]
[424398839,1780828250000,-668.34,0.00028695,30]
[424398811,1780828250000,-200.0,0.00028,30]
[424398813,1780828250000,-544.32811394,0.00028,2]
[424398784,1780828250000,-176.44847535,0.00027503,2]
[424398787,1780828250000,-172.36994126,0.00027503,2]
[424398786,1780828250000,-176.41552827,0.00027503,2]
[424398790,1780828250000,-188.64223225,0.00027503,2]
[424398785,1780828250000,-217.51164373,0.00027503,2]
[424398789,1780828250000,-160.44381498,0.00027503,2]
[424398788,1780828250000,-161.24298311,0.00027503,2]
[424398795,1780828250000,-500.0,0.00027509,2]
[424398798,1780828250000,-152.0,0.0002755,24]
[424398793,1780828250000,-180.7254794,0.00027503,2]
[424398802,1780828250000,-224.83,0.00027671,30]
[424398799,1780828250000,-278.89148441,0.00027616,30]
[424398796,1780828250000,-504.48,0.00027541,7]
[424398792,1780828250000,-162.30610091,0.00027503,2]
[424398807,1780828250000,-504.48,0.0002783,30]
[424398801,1780828250000,-170.12425593,0.0002767,2]
[424398814,1780828250000,-351.7438885,0.00028,30]
[424398812,1780828250000,-600.0,0.00028,2]
[424398810,1780828250000,-278.89148441,0.0002789,30]
[424398808,1780828250000,-646.0,0.0002783,30]
[424398816,1780828250000,-160.0,0.00028,2]
[424398805,1780828250000,-5530.0,0.000278,5]
[424398803,1780828250000,-224.83,0.00027671,30]
[424398797,1780828250000,-646.0,0.00027541,7]
[424398800,1780828250000,-166.8864393,0.0002767,2]
[424398794,1780828250000,-210.8908339,0.00027503,2]
[424398804,1780828250000,-255.38,0.00027671,30]
[424398806,1780828250000,-1111.0,0.00027803,15]
[424398885,1780828251000,-221.4511009,0.00028801,2]
[424398890,1780828251000,-165.40905576,0.00028801,2]
[424398887,1780828251000,-352.83105655,0.00028801,2]
[424398888,1780828251000,-241.94397868,0.00028801,2]
[424398886,1780828251000,-435.02328746,0.00028801,2]
[424398884,1780828251000,-169.26814008,0.00028801,2]
[424398878,1780828251000,-312.29805859,0.00028801,2]
[424398882,1780828251000,-177.45678146,0.00028801,2]
[424398892,1780828251000,-176.3730243,0.00028801,2]
[424398875,1780828251000,-329.32819821,0.000288,2]
[424398872,1780828251000,-336.78944005,0.000288,2]
[424398883,1780828251000,-174.45857574,0.00028801,2]
[424398876,1780828251000,-210.55983083,0.00028801,2]
[424398881,1780828251000,-352.89695069,0.00028801,2]
[424398891,1780828251000,-322.48596623,0.00028801,2]
[424398896,1780828251000,-177.03617496,0.00028801,2]
[424398894,1780828251000,-175.79361143,0.00028801,2]
[424398904,1780828251000,-361.45095881,0.00028801,2]
[424398905,1780828251000,-203.72842325,0.00028801,2]
[424398895,1780828251000,-377.2844645,0.00028801,2]
[424398897,1780828251000,-155.59953976,0.00028801,2]
[424398898,1780828251000,-216.93496734,0.00028801,2]
[424398893,1780828251000,-320.88762995,0.00028801,2]
[424398899,1780828251000,-311.45303647,0.00028801,2]
[424398901,1780828251000,-241.51846674,0.00028801,2]
[424398903,1780828251000,-324.61220182,0.00028801,2]
[424398902,1780828251000,-231.2602542,0.00028801,2]
[424398900,1780828251000,-200.07837176,0.00028801,2]
[424398917,1780828251000,-537.86,0.000289,7]
[424398889,1780828251000,-344.73988252,0.00028801,2]
[424398874,1780828251000,-350.63601455,0.000288,2]
[424398849,1780828251000,-181.46011857,0.00028799,2]
[424398877,1780828251000,-347.22112636,0.00028801,2]
[424398907,1780828251000,-246.92074313,0.00028801,2]
[424398854,1780828251000,-204.74784205,0.00028799,2]
[424398847,1780828251000,-448.14419923,0.00028799,2]
[424398846,1780828251000,-224.83,0.00028767,30]
[424398845,1780828251000,-224.83,0.00028767,30]
[424398851,1780828251000,-394.21589771,0.00028799,2]
[424398850,1780828251000,-363.22968668,0.00028799,2]
[424398848,1780828251000,-229.76093222,0.00028799,2]
[424398852,1780828251000,-360.43200595,0.00028799,2]
[424398853,1780828251000,-376.2159998,0.00028799,2]
[424398856,1780828251000,-351.11989412,0.00028799,2]
[424398867,1780828251000,-363.62105506,0.00028799,2]
[424398857,1780828251000,-206.97317898,0.00028799,2]
[424398858,1780828251000,-178.72456236,0.00028799,2]
[424398855,1780828251000,-226.03919583,0.00028799,2]
[424398866,1780828251000,-338.84864344,0.00028799,2]
[424398864,1780828251000,-231.76889507,0.00028799,2]
[424398859,1780828251000,-175.3621818,0.00028799,2]
[424398860,1780828251000,-178.56506239,0.00028799,2]
[424398862,1780828251000,-331.71652844,0.00028799,2]
[424398861,1780828251000,-423.96680277,0.00028799,2]
[424398863,1780828251000,-326.35416824,0.00028799,2]
[424398865,1780828251000,-356.87657444,0.00028799,2]
[424398869,1780828251000,-182.81348475,0.00028799,2]
[424398868,1780828251000,-382.52081697,0.00028799,2]
[424398870,1780828251000,-1385.48,0.000288,7]
[424398871,1780828251000,-215.83393831,0.000288,10]
[424398880,1780828251000,-311.29641227,0.00028801,2]
[424398873,1780828251000,-370.72150651,0.000288,2]
[424398879,1780828251000,-369.59417707,0.00028801,2]
[424398906,1780828251000,-187.60029822,0.00028801,2]
[424398929,1780828251000,-200.0,0.00029,2]
[424398908,1780828251000,-207.21131669,0.00028809,2]
[424398943,1780828251000,-158.0,0.00029,4]
[424398942,1780828251000,-158.0,0.00029,4]
[424398938,1780828251000,-213.84,0.00029,2]
[424398947,1780828251000,-158.0,0.00029,4]
[424398952,1780828251000,-157.0,0.00029,4]
[424398949,1780828251000,-158.0,0.00029,4]
[424398951,1780828251000,-157.0,0.00029,4]
[424398950,1780828251000,-160.0,0.00029,4]
[424398948,1780828251000,-158.0,0.00029,4]
[424398955,1780828251000,-157.0,0.00029,4]
[424398958,1780828251000,-182.01,0.00029,2]
[424398956,1780828251000,-157.0,0.00029,4]
[424398957,1780828251000,-182.01,0.00029,2]
[424398953,1780828251000,-157.0,0.00029,4]
[424398959,1780828251000,-182.02,0.00029,2]
[424398954,1780828251000,-157.0,0.00029,4]
[424398972,1780828251000,-527.18127303,0.00029,2]
[424398962,1780828251000,-511.37048438,0.00029,2]
[424398973,1780828251000,-479.03258016,0.00029,2]
[424398961,1780828251000,-219.76923867,0.00029,2]
[424398964,1780828251000,-1125.0,0.00029,2]
[424398963,1780828251000,-4790.95220949,0.00029,30]
[424398971,1780828251000,-500.0,0.00029,2]
[424398965,1780828251000,-2000.0,0.00029,3]
[424398966,1780828251000,-500.0,0.00029,2]
[424398970,1780828251000,-500.0,0.00029,2]
[424398968,1780828251000,-500.0,0.00029,2]
[424398967,1780828251000,-500.0,0.00029,2]
[424398909,1780828251000,-202.73999541,0.00028809,2]
[424398939,1780828251000,-166.0,0.00029,4]
[424398941,1780828251000,-158.0,0.00029,4]
[424398960,1780828251000,-11183.58913113,0.00029,2]
[424398940,1780828251000,-158.0,0.00029,4]
[424398937,1780828251000,-200.0,0.00029,2]
[424398915,1780828251000,-160.0,0.00028857,3]
[424398910,1780828251000,-215.38541865,0.00028809,2]
[424398918,1780828251000,-179.97120458,0.00028971,2]
[424398911,1780828251000,-400.55276397,0.00028809,2]
[424398912,1780828251000,-200.0,0.00028849,2]
[424398919,1780828251000,-164.76840062,0.00028971,2]
[424398914,1780828251000,-150.0,0.00028855,2]
[424398913,1780828251000,-500.0,0.00028855,2]
[424398922,1780828251000,-340.24851186,0.00028974,2]
[424398920,1780828251000,-194.000028,0.00028971,2]
[424398932,1780828251000,-200.0,0.00029,2]
[424398924,1780828251000,-200.0,0.00029,2]
[424398921,1780828251000,-333.7728786,0.00028974,2]
[424398930,1780828251000,-200.0,0.00029,2]
[424398916,1780828251000,-160.0,0.00028889,3]
[424398936,1780828251000,-200.0,0.00029,2]
[424398925,1780828251000,-200.0,0.00029,2]
[424398934,1780828251000,-200.0,0.00029,2]
[424398944,1780828251000,-158.0,0.00029,4]
[424398946,1780828251000,-158.0,0.00029,4]
[424398945,1780828251000,-158.0,0.00029,4]
[424398969,1780828251000,-500.0,0.00029,2]
[424398935,1780828251000,-200.0,0.00029,2]
[424398928,1780828251000,-200.0,0.00029,2]
[424398926,1780828251000,-200.0,0.00029,2]
[424398923,1780828251000,-200.0,0.00029,2]
[424398933,1780828251000,-200.0,0.00029,2]
[424398931,1780828251000,-200.0,0.00029,2]
[424398927,1780828251000,-200.0,0.00029,2]
[424399023,1780828252000,-430.67,0.00029441,2]
[424399016,1780828252000,-430.67,0.00029441,30]
[424399020,1780828252000,-430.67,0.00029441,2]
[424399024,1780828252000,-430.69,0.00029441,7]
[424399018,1780828252000,-430.67,0.00029441,7]
[424399014,1780828252000,-430.67,0.00029441,2]
[424399009,1780828252000,-430.67,0.00029441,7]
[424399007,1780828252000,-430.67,0.00029441,30]
[424399013,1780828252000,-430.67,0.00029441,30]
[424399004,1780828252000,-1268.28,0.00029419,7]
[424399008,1780828252000,-430.67,0.00029441,2]
[424399011,1780828252000,-430.67,0.00029441,2]
[424399019,1780828252000,-430.67,0.00029441,30]
[424399015,1780828252000,-430.67,0.00029441,7]
[424399026,1780828252000,-336.32,0.00029451,7]
[424399028,1780828252000,-336.32,0.00029451,2]
[424399017,1780828252000,-430.67,0.00029441,2]
[424399022,1780828252000,-430.67,0.00029441,30]
[424399021,1780828252000,-430.67,0.00029441,7]
[424399027,1780828252000,-336.32,0.00029451,30]
[424399032,1780828252000,-336.32,0.00029451,7]
[424399030,1780828252000,-336.32,0.00029451,30]
[424399031,1780828252000,-336.32,0.00029451,2]
[424399033,1780828252000,-336.32,0.00029451,30]
[424399035,1780828252000,-336.32,0.00029451,7]
[424399029,1780828252000,-336.32,0.00029451,7]
[424399034,1780828252000,-336.32,0.00029451,2]
[424399037,1780828252000,-336.32,0.00029451,2]
[424399038,1780828252000,-336.32,0.00029451,7]
[424399006,1780828252000,-430.67,0.00029441,7]
[424399025,1780828252000,-336.32,0.00029451,2]
[424399012,1780828252000,-430.67,0.00029441,7]
[424398975,1780828252000,-1292.0,0.00029,7]
[424399003,1780828252000,-1073.08,0.00029412,7]
[424399036,1780828252000,-336.32,0.00029451,30]
[424398979,1780828252000,-577.81814595,0.00029224,2]
[424398976,1780828252000,-151.0,0.00029007,60]
[424398978,1780828252000,-300.0,0.0002913,7]
[424398981,1780828252000,-221.0,0.0002923,30]
[424398977,1780828252000,-152.0,0.00029018,29]
[424398974,1780828252000,-220.0,0.00029,7]
[424398985,1780828252000,-670.0,0.0002923,30]
[424398982,1780828252000,-529.0,0.0002923,30]
[424398984,1780828252000,-584.0,0.0002923,30]
[424398986,1780828252000,-620.0,0.0002923,30]
[424398980,1780828252000,-623.0,0.0002923,30]
[424398983,1780828252000,-432.0,0.0002923,30]
[424398988,1780828252000,-173.34544378,0.00029231,30]
[424399010,1780828252000,-430.67,0.00029441,30]
[424398990,1780828252000,-291.0,0.00029232,30]
[424398998,1780828252000,-300.0,0.0002933,20]
[424398987,1780828252000,-390.0,0.0002923,30]
[424398991,1780828252000,-260.27,0.000293,7]
[424399000,1780828252000,-791.15,0.00029383,30]
[424398999,1780828252000,-1268.28,0.0002933,30]
[424398993,1780828252000,-198.0,0.0002931,30]
[424398996,1780828252000,-179.97120458,0.00029319,2]
[424398997,1780828252000,-1073.08,0.00029322,30]
[424398992,1780828252000,-378.0,0.0002931,30]
[424398994,1780828252000,-544.0,0.0002931,30]
[424398995,1780828252000,-152.0,0.00029312,30]
[424399001,1780828252000,-1153.43,0.00029392,30]
[424399005,1780828252000,-430.67,0.00029441,2]
[424399002,1780828252000,-1120.33,0.00029406,30]
[424398989,1780828252000,-296.0,0.00029232,30]
[424399039,1780828252000,-336.32,0.00029451,30]
[424399052,1780828252000,-300.0,0.0002953,7]
[424399042,1780828252000,-336.32,0.00029451,30]
[424399072,1780828252000,-500.0,0.00029589,60]
[424399074,1780828252000,-500.0,0.00029589,60]
[424399075,1780828252000,-343.0,0.00029589,60]
[424399081,1780828252000,-500.0,0.00029589,2]
[424399080,1780828252000,-500.0,0.00029589,2]
[424399093,1780828252000,-1035.0,0.00029589,60]
[424399091,1780828252000,-1035.0,0.00029589,60]
[424399092,1780828252000,-500.0,0.00029589,60]
[424399086,1780828252000,-1035.0,0.00029589,60]
[424399088,1780828252000,-500.0,0.00029589,60]
[424399084,1780828252000,-1035.0,0.00029589,60]
[424399082,1780828252000,-500.0,0.00029589,2]
[424399087,1780828252000,-1035.0,0.00029589,60]
[424399083,1780828252000,-500.0,0.00029589,2]
[424399076,1780828252000,-500.0,0.00029589,14]
[424399085,1780828252000,-1035.0,0.00029589,60]
[424399089,1780828252000,-1035.0,0.00029589,60]
[424399105,1780828252000,-500.0,0.00029589,60]
[424399095,1780828252000,-1035.0,0.00029589,60]
[424399106,1780828252000,-1035.0,0.00029589,60]
[424399094,1780828252000,-500.0,0.00029589,60]
[424399096,1780828252000,-500.0,0.00029589,60]
[424399097,1780828252000,-1035.0,0.00029589,60]
[424399099,1780828252000,-1035.0,0.00029589,60]
[424399040,1780828252000,-336.32,0.00029451,2]
[424399101,1780828252000,-500.0,0.00029589,60]
[424399100,1780828252000,-500.0,0.00029589,60]
[424399104,1780828252000,-1035.0,0.00029589,60]
[424399102,1780828252000,-1035.0,0.00029589,60]
[424399103,1780828252000,-500.0,0.00029589,60]
[424399090,1780828252000,-500.0,0.00029589,60]
[424399070,1780828252000,-500.0,0.00029589,60]
[424399098,1780828252000,-500.0,0.00029589,60]
[424399068,1780828252000,-500.0,0.00029589,60]
[424399073,1780828252000,-500.0,0.00029589,60]
[424399053,1780828252000,-150.0,0.00029534,2]
[424399044,1780828252000,-336.35,0.00029451,7]
[424399041,1780828252000,-336.32,0.00029451,7]
[424399045,1780828252000,-272.4309267,0.00029459,30]
[424399047,1780828252000,-814.27,0.00029473,30]
[424399046,1780828252000,-791.15,0.00029466,7]
[424399048,1780828252000,-1153.43,0.00029474,7]
[424399051,1780828252000,-1268.28,0.00029509,2]
[424399049,1780828252000,-1120.33,0.00029487,7]
[424399050,1780828252000,-1073.08,0.00029503,2]
[424399054,1780828252000,-814.27,0.00029546,7]
[424399056,1780828252000,-1153.43,0.00029557,2]
[424399060,1780828252000,-500.0,0.00029589,60]
[424399055,1780828252000,-791.15,0.0002955,2]
[424399043,1780828252000,-336.32,0.00029451,2]
[424399061,1780828252000,-500.0,0.00029589,60]
[424399059,1780828252000,-500.0,0.00029589,60]
[424399069,1780828252000,-500.0,0.00029589,60]
[424399078,1780828252000,-500.0,0.00029589,2]
[424399077,1780828252000,-500.0,0.00029589,2]
[424399079,1780828252000,-500.0,0.00029589,2]
[424399067,1780828252000,-500.0,0.00029589,60]
[424399066,1780828252000,-500.0,0.00029589,60]
[424399063,1780828252000,-500.0,0.00029589,60]
[424399057,1780828252000,-1120.33,0.00029568,2]
[424399064,1780828252000,-500.0,0.00029589,60]
[424399058,1780828252000,-500.0,0.00029589,60]
[424399071,1780828252000,-500.0,0.00029589,60]
[424399065,1780828252000,-500.0,0.00029589,60]
[424399062,1780828252000,-500.0,0.00029589,60]
[424399150,1780828253000,-791.15,0.00029634,30]
[424399140,1780828253000,-500.0,0.00029589,60]
[424399139,1780828253000,-500.0,0.00029589,60]
[424399145,1780828253000,-1073.08,0.00029593,30]
[424399144,1780828253000,-1053.0953843,0.00029589,60]
[424399143,1780828253000,-1035.0,0.00029589,60]
[424399142,1780828253000,-396.94383744,0.00029589,60]
[424399141,1780828253000,-500.0,0.00029589,60]
[424399146,1780828253000,-1268.28,0.00029598,30]
[424399148,1780828253000,-170.26932919,0.00029606,30]
[424399138,1780828253000,-500.0,0.00029589,60]
[424399137,1780828253000,-512.72709505,0.00029589,60]
[424399158,1780828253000,-229.05127263,0.00029664,2]
[424399152,1780828253000,-1120.33,0.00029649,30]